[Event "*** SCC Grand Prix: Titled Tuesday Blitz"]
[Site "Chess.com"]
[Date "2020.08.04"]
[Round "10"]
[White "Anton_Demchenko"]
[Black "BeanScreen"]
[Result "1-0"]
[WhiteElo "2823"]
[BlackElo "2708"]
[TimeControl "180+1"]
[EndTime "15:36:59 PDT"]
[Termination "Anton_Demchenko won on time"]

1. e4 {[%clk 0:03:00.9]} 1... e5 {[%clk 0:02:59.7]} 2. Nf3 {[%clk 0:02:59.5]}
2... Nc6 {[%clk 0:03:00.4]} 3. Nc3 {[%clk 0:02:58.8]} 3... Nf6 {[%clk
0:03:00.4]} 4. d4 {[%clk 0:02:58.8]} 4... exd4 {[%clk 0:03:00.6]} 5. Nxd4 {[%clk
0:02:59.7]} 5... Bb4 {[%clk 0:03:00.8]} 6. Nxc6 {[%clk 0:03:00.1]} 6... bxc6
{[%clk 0:03:01.7]} 7. Bd3 {[%clk 0:03:00.8]} 7... d5 {[%clk 0:03:02.1]} 8. exd5
{[%clk 0:03:00.4]} 8... O-O {[%clk 0:03:02.4]} 9. O-O {[%clk 0:03:00.7]} 9...
cxd5 {[%clk 0:03:02.8]} 10. h3 {[%clk 0:03:00.1]} 10... h6 {[%clk 0:03:02.6]}
11. Qf3 {[%clk 0:02:58.2]} 11... Be6 {[%clk 0:03:02.9]} 12. Bf4 {[%clk
0:02:52.6]} 12... Rb8 {[%clk 0:03:02.1]} 13. Nb5 {[%clk 0:02:46.9]} 13... Rb7
{[%clk 0:02:45.7]} 14. a3 {[%clk 0:02:30.2]} 14... Be7 {[%clk 0:02:43.2]} 15. b4
{[%clk 0:02:30.3]} 15... Qd7 {[%clk 0:02:27]} 16. Nd4 {[%clk 0:02:27.3]} 16...
c5 {[%clk 0:02:16.6]} 17. bxc5 {[%clk 0:02:26]} 17... Bxc5 {[%clk 0:02:17.5]}
18. Nb3 {[%clk 0:02:25.7]} 18... Bd6 {[%clk 0:02:03.8]} 19. Bxh6 {[%clk
0:02:23.6]} 19... Be5 {[%clk 0:02:04]} 20. Rae1 {[%clk 0:02:22.4]} 20... Bc3
{[%clk 0:02:03.7]} 21. Nc5 {[%clk 0:01:59.5]} 21... Qe7 {[%clk 0:02:03.5]} 22.
Nxb7 {[%clk 0:01:54.7]} 22... gxh6 {[%clk 0:01:50.5]} 23. Rb1 {[%clk 0:01:49.9]}
23... Kh8 {[%clk 0:01:26.9]} 24. Qf4 {[%clk 0:01:38.9]} 24... Kg7 {[%clk
0:01:20.9]} 25. Qg3+ {[%clk 0:01:36.8]} 25... Kh8 {[%clk 0:01:20.7]} 26. Qd6
{[%clk 0:01:37.5]} 26... Qe8 {[%clk 0:01:07.1]} 27. Nc5 {[%clk 0:01:32.8]} 27...
Rg8 {[%clk 0:00:54]} 28. Nxe6 {[%clk 0:01:31.7]} 28... fxe6 {[%clk 0:00:54.4]}
29. Rb7 {[%clk 0:01:18.5]} 29... Qh5 {[%clk 0:00:05.3]} 30. Qxe6 {[%clk
0:01:11.6]} 30... Rf8 {[%clk 0:00:03.4]} 31. Qe7 {[%clk 0:01:08.3]} 1-0

[Event "*** SCC Grand Prix: Titled Tuesday Blitz"]
[Site "Chess.com"]
[Date "2020.08.04"]
[Round "10"]
[White "boasovietica"]
[Black "chessuriel"]
[Result "1-0"]
[WhiteElo "2412"]
[BlackElo "2272"]
[TimeControl "180+1"]
[EndTime "15:37:01 PDT"]
[Termination "boasovietica won by resignation"]

1. e4 {[%clk 0:03:00.9]} 1... c5 {[%clk 0:02:59.8]} 2. Nf3 {[%clk 0:03:00.4]}
2... Nc6 {[%clk 0:03:00.2]} 3. Nc3 {[%clk 0:03:00.3]} 3... e6 {[%clk 0:02:58.1]}
4. d4 {[%clk 0:02:59]} 4... cxd4 {[%clk 0:02:58.3]} 5. Nxd4 {[%clk 0:02:59.9]}
5... Qc7 {[%clk 0:02:58.4]} 6. Nb3 {[%clk 0:02:57.2]} 6... Nf6 {[%clk
0:02:57.3]} 7. Bd3 {[%clk 0:02:56.9]} 7... a6 {[%clk 0:02:56.6]} 8. O-O {[%clk
0:02:57.1]} 8... b5 {[%clk 0:02:55.7]} 9. f4 {[%clk 0:02:53.8]} 9... d6 {[%clk
0:02:55.2]} 10. Qf3 {[%clk 0:02:53.6]} 10... Bb7 {[%clk 0:02:54.2]} 11. Bd2
{[%clk 0:02:53.9]} 11... Be7 {[%clk 0:02:51.7]} 12. Rae1 {[%clk 0:02:53.6]}
12... Nb4 {[%clk 0:02:46.8]} 13. Kh1 {[%clk 0:02:50]} 13... O-O {[%clk
0:02:42.3]} 14. Qh3 {[%clk 0:02:46.7]} 14... Nxd3 {[%clk 0:02:41.2]} 15. cxd3
{[%clk 0:02:46.4]} 15... b4 {[%clk 0:02:36.3]} 16. Ne2 {[%clk 0:02:45.9]} 16...
a5 {[%clk 0:02:27.5]} 17. Nbd4 {[%clk 0:02:39.4]} 17... Ba6 {[%clk 0:02:20.7]}
18. Rf3 {[%clk 0:02:36.1]} 18... Qd7 {[%clk 0:02:13.6]} 19. Rg3 {[%clk 0:02:34]}
19... Kh8 {[%clk 0:02:03]} 20. b3 {[%clk 0:02:23.5]} 20... Rac8 {[%clk
0:01:57.6]} 21. Rg5 {[%clk 0:02:01.2]} 21... Rc5 {[%clk 0:01:44.8]} 22. e5
{[%clk 0:01:55.5]} 22... dxe5 {[%clk 0:01:38.4]} 23. fxe5 {[%clk 0:01:55.4]}
23... Ne4 {[%clk 0:01:26.5]} 24. dxe4 {[%clk 0:01:39.5]} 24... Bxg5 {[%clk
0:01:19.5]} 25. Bxg5 {[%clk 0:01:39.5]} 25... Rxe5 {[%clk 0:01:10]} 26. Qh4
{[%clk 0:01:30.5]} 26... Bb7 {[%clk 0:00:37.5]} 27. Nf3 {[%clk 0:00:41]} 27...
Rxe4 {[%clk 0:00:36.8]} 28. Nf4 {[%clk 0:00:32.6]} 28... Rxe1+ {[%clk
0:00:34.8]} 29. Qxe1 {[%clk 0:00:27.4]} 29... Qd3 {[%clk 0:00:32.2]} 30. Nxd3
{[%clk 0:00:26.6]} 1-0

[Event "*** SCC Grand Prix: Titled Tuesday Blitz"]
[Site "Chess.com"]
[Date "2020.08.04"]
[Round "10"]
[White "anpospan"]
[Black "superchess02"]
[Result "0-1"]
[WhiteElo "2367"]
[BlackElo "2728"]
[TimeControl "180+1"]
[EndTime "15:37:02 PDT"]
[Termination "superchess02 won on time"]

1. d4 {[%clk 0:03:00.9]} 1... Nf6 {[%clk 0:02:59.5]} 2. c4 {[%clk 0:03:00.8]}
2... e6 {[%clk 0:02:59.1]} 3. Nc3 {[%clk 0:03:00.6]} 3... Bb4 {[%clk 0:02:59.2]}
4. a3 {[%clk 0:03:00.7]} 4... Bxc3+ {[%clk 0:02:59.1]} 5. bxc3 {[%clk 0:03:01]}
5... O-O {[%clk 0:02:58.6]} 6. f3 {[%clk 0:03:01.1]} 6... c5 {[%clk 0:02:58.5]}
7. e4 {[%clk 0:02:59.3]} 7... Ne8 {[%clk 0:02:58.1]} 8. Bd3 {[%clk 0:02:56.9]}
8... Nc6 {[%clk 0:02:58.3]} 9. Be3 {[%clk 0:02:55.3]} 9... b6 {[%clk 0:02:58.3]}
10. f4 {[%clk 0:02:52.8]} 10... f5 {[%clk 0:02:56.3]} 11. d5 {[%clk 0:02:39.3]}
11... Na5 {[%clk 0:02:55]} 12. e5 {[%clk 0:02:19.6]} 12... Ba6 {[%clk
0:02:52.6]} 13. Qe2 {[%clk 0:02:13.6]} 13... d6 {[%clk 0:02:45.3]} 14. Nf3
{[%clk 0:02:05.1]} 14... dxe5 {[%clk 0:02:39.1]} 15. Nxe5 {[%clk 0:01:59.7]}
15... exd5 {[%clk 0:02:38.1]} 16. cxd5 {[%clk 0:01:57.1]} 16... c4 {[%clk
0:02:38.5]} 17. Nxc4 {[%clk 0:01:44.4]} 17... Qxd5 {[%clk 0:02:38.2]} 18. Ne5
{[%clk 0:01:31.9]} 18... Bxd3 {[%clk 0:02:38.1]} 19. Qxd3 {[%clk 0:01:21.5]}
19... Qxd3 {[%clk 0:02:35.5]} 20. Nxd3 {[%clk 0:01:20.7]} 20... Rc8 {[%clk
0:02:36.4]} 21. Bd4 {[%clk 0:01:12]} 21... Nb3 {[%clk 0:02:34]} 22. Rd1 {[%clk
0:01:07.8]} 22... Nc7 {[%clk 0:02:27]} 23. Ne5 {[%clk 0:00:57.8]} 23... Nb5
{[%clk 0:02:25.3]} 24. a4 {[%clk 0:00:45.6]} 24... Nxc3 {[%clk 0:02:20.3]} 25.
Bxc3 {[%clk 0:00:43.8]} 25... Rxc3 {[%clk 0:02:21.2]} 26. O-O {[%clk 0:00:42.3]}
26... Nc5 {[%clk 0:02:21.1]} 27. Nd7 {[%clk 0:00:39.6]} 27... Rc8 {[%clk
0:02:16.4]} 28. Nxc5 {[%clk 0:00:35.9]} 28... R3xc5 {[%clk 0:02:17.3]} 29. Rfe1
{[%clk 0:00:33.7]} 29... R8c7 {[%clk 0:02:15.3]} 30. Re8+ {[%clk 0:00:30.3]}
30... Kf7 {[%clk 0:02:15.5]} 31. Rdd8 {[%clk 0:00:30.2]} 31... h6 {[%clk
0:01:49.9]} 32. Rf8+ {[%clk 0:00:27.3]} 32... Kg6 {[%clk 0:01:49.9]} 33. Rd6+
{[%clk 0:00:26.6]} 33... Kh7 {[%clk 0:01:50.3]} 34. Rd4 {[%clk 0:00:17]} 34...
Rc4 {[%clk 0:01:46.1]} 35. Rfd8 {[%clk 0:00:12.1]} 35... Rc1+ {[%clk 0:01:37.7]}
36. Kf2 {[%clk 0:00:11.4]} 36... R7c2+ {[%clk 0:01:38.3]} 37. Kg3 {[%clk
0:00:10.6]} 37... Rg1 {[%clk 0:01:36.9]} 38. Rd2 {[%clk 0:00:09.7]} 38... Rxd2
{[%clk 0:01:37.3]} 39. Rxd2 {[%clk 0:00:08.9]} 39... Ra1 {[%clk 0:01:36.3]} 40.
Rd4 {[%clk 0:00:07.5]} 40... Ra2 {[%clk 0:01:36.6]} 41. Kh3 {[%clk 0:00:06.6]}
41... Kg6 {[%clk 0:01:37.1]} 42. Rd6+ {[%clk 0:00:03.4]} 42... Kh5 {[%clk
0:01:37.1]} 43. Rd4 {[%clk 0:00:02.7]} 43... g5 {[%clk 0:01:30.8]} 0-1

[Event "*** SCC Grand Prix: Titled Tuesday Blitz"]
[Site "Chess.com"]
[Date "2020.08.04"]
[Round "10"]
[White "TST2014"]
[Black "Chessbard1972"]
[Result "1-0"]
[WhiteElo "2514"]
[BlackElo "2344"]
[TimeControl "180+1"]
[EndTime "15:37:12 PDT"]
[Termination "TST2014 won by resignation"]

1. d4 {[%clk 0:03:00.9]} 1... Nf6 {[%clk 0:02:59.1]} 2. c4 {[%clk 0:03:00.3]}
2... g6 {[%clk 0:02:59]} 3. Nc3 {[%clk 0:03:00.2]} 3... Bg7 {[%clk 0:02:59.9]}
4. e4 {[%clk 0:03:00.4]} 4... d6 {[%clk 0:03:00.1]} 5. Nf3 {[%clk 0:03:01.3]}
5... O-O {[%clk 0:03:00.3]} 6. Be2 {[%clk 0:03:01.7]} 6... Na6 {[%clk
0:03:00.4]} 7. O-O {[%clk 0:03:02.1]} 7... c5 {[%clk 0:02:52.7]} 8. d5 {[%clk
0:03:00.4]} 8... e6 {[%clk 0:02:52.7]} 9. h3 {[%clk 0:02:51.3]} 9... exd5 {[%clk
0:02:52.4]} 10. cxd5 {[%clk 0:02:51.3]} 10... Nc7 {[%clk 0:02:52.8]} 11. a4
{[%clk 0:02:41.5]} 11... Nd7 {[%clk 0:02:51]} 12. Bg5 {[%clk 0:02:38.4]} 12...
Qe8 {[%clk 0:02:45.8]} 13. Qd2 {[%clk 0:02:27.8]} 13... a6 {[%clk 0:02:39.4]}
14. Bd3 {[%clk 0:02:23.4]} 14... Rb8 {[%clk 0:02:36]} 15. a5 {[%clk 0:02:14.4]}
15... b5 {[%clk 0:02:34.7]} 16. axb6 {[%clk 0:02:14.1]} 16... Rxb6 {[%clk
0:02:34.2]} 17. Rfe1 {[%clk 0:02:12.5]} 17... Ne5 {[%clk 0:02:30.6]} 18. Nxe5
{[%clk 0:02:08.2]} 18... Qxe5 {[%clk 0:02:30.2]} 19. Bf4 {[%clk 0:02:07.1]}
19... Qe7 {[%clk 0:02:27.3]} 20. Bc4 {[%clk 0:01:54.4]} 20... Be5 {[%clk
0:02:24]} 21. Bxe5 {[%clk 0:01:47.3]} 21... Qxe5 {[%clk 0:02:23.3]} 22. f4
{[%clk 0:01:47.4]} 22... Qg7 {[%clk 0:02:11.1]} 23. e5 {[%clk 0:01:46.8]} 23...
Nb5 {[%clk 0:02:09.6]} 24. Bxb5 {[%clk 0:01:38.4]} 24... axb5 {[%clk 0:02:08.2]}
25. Qe3 {[%clk 0:01:05.1]} 25... Re8 {[%clk 0:02:04.5]} 26. b4 {[%clk
0:00:59.1]} 26... Rb8 {[%clk 0:01:38.9]} 27. bxc5 {[%clk 0:00:57.4]} 27... b4
{[%clk 0:01:37.1]} 28. Ne4 {[%clk 0:00:52.2]} 28... dxe5 {[%clk 0:01:35.5]} 29.
fxe5 {[%clk 0:00:45.7]} 29... Rd8 {[%clk 0:01:18.5]} 30. Nf6+ {[%clk 0:00:42.2]}
30... Kh8 {[%clk 0:01:17.2]} 31. c6 {[%clk 0:00:42.6]} 31... Rf8 {[%clk
0:01:11.1]} 32. d6 {[%clk 0:00:35.6]} 32... Be6 {[%clk 0:01:09.1]} 33. c7 {[%clk
0:00:33.5]} 33... Ra8 {[%clk 0:01:08.2]} 34. Qb6 {[%clk 0:00:31.9]} 34... b3
{[%clk 0:01:02.9]} 35. d7 {[%clk 0:00:30.6]} 35... Bxd7 {[%clk 0:00:56.4]} 36.
Nxd7 {[%clk 0:00:29.9]} 36... Rfc8 {[%clk 0:00:55.6]} 37. Rxa8 {[%clk
0:00:28.8]} 37... Rxa8 {[%clk 0:00:55.3]} 38. Qb8+ {[%clk 0:00:29.4]} 38... Qg8
{[%clk 0:00:55.3]} 39. Qxg8+ {[%clk 0:00:28.2]} 39... Rxg8 {[%clk 0:00:47.2]}
40. Nb6 {[%clk 0:00:27.7]} 40... b2 {[%clk 0:00:46.7]} 41. c8=Q {[%clk
0:00:27.1]} 41... Rxc8 {[%clk 0:00:47.3]} 42. Nxc8 {[%clk 0:00:27.8]} 42... b1=Q
{[%clk 0:00:46.9]} 43. Rxb1 {[%clk 0:00:27.4]} 1-0

[Event "*** SCC Grand Prix: Titled Tuesday Blitz"]
[Site "Chess.com"]
[Date "2020.08.04"]
[Round "10"]
[White "ChessArchitect64"]
[Black "CraiggoryC"]
[Result "1-0"]
[WhiteElo "1907"]
[BlackElo "2175"]
[TimeControl "180+1"]
[EndTime "15:37:12 PDT"]
[Termination "ChessArchitect64 won by checkmate"]

1. e4 {[%clk 0:02:50.4]} 1... e6 {[%clk 0:02:59.9]} 2. d4 {[%clk 0:02:50.2]}
2... d5 {[%clk 0:02:59.9]} 3. e5 {[%clk 0:02:50.6]} 3... c5 {[%clk 0:02:59.7]}
4. c3 {[%clk 0:02:51]} 4... Qb6 {[%clk 0:03:00.2]} 5. Nf3 {[%clk 0:02:49.4]}
5... Nc6 {[%clk 0:03:00.6]} 6. Be2 {[%clk 0:02:49.2]} 6... Nh6 {[%clk
0:02:59.2]} 7. b3 {[%clk 0:02:45]} 7... cxd4 {[%clk 0:02:52.6]} 8. cxd4 {[%clk
0:02:45]} 8... Nf5 {[%clk 0:02:51.1]} 9. Bb2 {[%clk 0:02:42.8]} 9... Bb4+ {[%clk
0:02:50.9]} 10. Kf1 {[%clk 0:02:40.6]} 10... O-O {[%clk 0:02:50.2]} 11. g4
{[%clk 0:02:40]} 11... Nh6 {[%clk 0:02:50.3]} 12. h3 {[%clk 0:02:37.6]} 12... f6
{[%clk 0:02:50.2]} 13. a3 {[%clk 0:02:36.3]} 13... Be7 {[%clk 0:02:42.9]} 14.
exf6 {[%clk 0:02:30.4]} 14... Rxf6 {[%clk 0:02:42.7]} 15. g5 {[%clk 0:02:20.8]}
15... Rxf3 {[%clk 0:02:42.5]} 16. Bxf3 {[%clk 0:02:20.9]} 16... Nf5 {[%clk
0:02:33.7]} 17. h4 {[%clk 0:02:15.4]} 17... Ncxd4 {[%clk 0:02:28.3]} 18. Bg2
{[%clk 0:02:15.6]} 18... Nxb3 {[%clk 0:02:19.4]} 19. Ra2 {[%clk 0:02:15.4]}
19... Bd7 {[%clk 0:02:19.5]} 20. Nd2 {[%clk 0:02:15]} 20... Ba4 {[%clk 0:01:57]}
21. Qe1 {[%clk 0:01:55.5]} 21... Rf8 {[%clk 0:01:36.6]} 22. Kg1 {[%clk
0:01:53.8]} 22... Ng3 {[%clk 0:01:07.7]} 23. Qe5 {[%clk 0:01:44.3]} 23... Qxf2+
{[%clk 0:00:42.5]} 24. Kh2 {[%clk 0:01:43.5]} 24... Rf7 {[%clk 0:00:26.4]} 25.
Bc3 {[%clk 0:00:45.3]} 25... Ne4 {[%clk 0:00:13.9]} 26. Nxe4 {[%clk 0:00:44.6]}
26... Qxa2 {[%clk 0:00:13.4]} 27. Rf1 {[%clk 0:00:29.7]} 27... Rxf1 {[%clk
0:00:11]} 28. Qxg7# {[%clk 0:00:29.6]} 1-0

[Event "*** SCC Grand Prix: Titled Tuesday Blitz"]
[Site "Chess.com"]
[Date "2020.08.04"]
[Round "10"]
[White "Artem_Sadovsky"]
[Black "bazar-wokzal"]
[Result "1-0"]
[WhiteElo "2412"]
[BlackElo "2467"]
[TimeControl "180+1"]
[EndTime "15:37:23 PDT"]
[Termination "Artem_Sadovsky won by checkmate"]

1. Nf3 {[%clk 0:03:00.1]} 1... c5 {[%clk 0:02:59.3]} 2. g3 {[%clk 0:03:00.3]}
2... Nc6 {[%clk 0:02:59.4]} 3. Bg2 {[%clk 0:03:00.8]} 3... e5 {[%clk 0:02:59.8]}
4. O-O {[%clk 0:03:00.4]} 4... f5 {[%clk 0:03:00.1]} 5. d3 {[%clk 0:02:58.3]}
5... Nf6 {[%clk 0:02:59.1]} 6. c4 {[%clk 0:02:51.6]} 6... d6 {[%clk 0:02:59]} 7.
Nc3 {[%clk 0:02:49.1]} 7... h6 {[%clk 0:02:58.6]} 8. Nh4 {[%clk 0:02:47.6]} 8...
Ne7 {[%clk 0:02:57.3]} 9. f4 {[%clk 0:02:45.9]} 9... exf4 {[%clk 0:02:52]} 10.
gxf4 {[%clk 0:02:43.6]} 10... Be6 {[%clk 0:02:41.3]} 11. e4 {[%clk 0:02:43]}
11... Qd7 {[%clk 0:02:36.9]} 12. e5 {[%clk 0:02:37.6]} 12... dxe5 {[%clk
0:02:30.1]} 13. fxe5 {[%clk 0:02:38.5]} 13... Ng4 {[%clk 0:02:24.3]} 14. Nb5
{[%clk 0:02:24.2]} 14... Nxe5 {[%clk 0:02:11]} 15. Bf4 {[%clk 0:02:24.4]} 15...
N7c6 {[%clk 0:02:01.9]} 16. Qe2 {[%clk 0:02:01.5]} 16... Qxd3 {[%clk 0:00:41.7]}
17. Nc7+ {[%clk 0:01:38.2]} 17... Kf7 {[%clk 0:00:40]} 18. Qh5+ {[%clk
0:01:03.1]} 18... g6 {[%clk 0:00:31.1]} 19. Nxg6 {[%clk 0:01:03.3]} 19... Nxg6
{[%clk 0:00:31.4]} 20. Nxe6 {[%clk 0:00:55.8]} 20... Qxc4 {[%clk 0:00:22.3]} 21.
Rad1 {[%clk 0:00:48.2]} 21... Nd4 {[%clk 0:00:16.8]} 22. Nxd4 {[%clk 0:00:38.5]}
22... cxd4 {[%clk 0:00:17.2]} 23. Rc1 {[%clk 0:00:39.4]} 23... Qxa2 {[%clk
0:00:14.2]} 24. Rc7+ {[%clk 0:00:38.6]} 24... Be7 {[%clk 0:00:14.7]} 25. Rxe7+
{[%clk 0:00:30.5]} 25... Kxe7 {[%clk 0:00:14.7]} 26. Qxg6 {[%clk 0:00:31.4]}
26... Rhg8 {[%clk 0:00:14.6]} 27. Re1+ {[%clk 0:00:27.4]} 27... Kd7 {[%clk
0:00:15]} 28. Qd6+ {[%clk 0:00:26.9]} 28... Kc8 {[%clk 0:00:14.2]} 29. Qc7#
{[%clk 0:00:26.7]} 1-0

[Event "*** SCC Grand Prix: Titled Tuesday Blitz"]
[Site "Chess.com"]
[Date "2020.08.04"]
[Round "10"]
[White "kleopl"]
[Black "Bastiandash"]
[Result "1-0"]
[WhiteElo "2448"]
[BlackElo "2318"]
[TimeControl "180+1"]
[EndTime "15:37:24 PDT"]
[Termination "kleopl won by resignation"]

1. c4 {[%clk 0:03:00.9]} 1... Nf6 {[%clk 0:02:59.4]} 2. Nc3 {[%clk 0:03:00.5]}
2... e6 {[%clk 0:02:59.7]} 3. e4 {[%clk 0:03:00]} 3... d6 {[%clk 0:02:51.5]} 4.
d4 {[%clk 0:02:59]} 4... b6 {[%clk 0:02:49.6]} 5. Bd3 {[%clk 0:02:57.5]} 5...
Bb7 {[%clk 0:02:49.6]} 6. Nge2 {[%clk 0:02:57.7]} 6... Nbd7 {[%clk 0:02:50.5]}
7. O-O {[%clk 0:02:57.7]} 7... g6 {[%clk 0:02:46.6]} 8. Bg5 {[%clk 0:02:56.5]}
8... h6 {[%clk 0:02:45.7]} 9. Bh4 {[%clk 0:02:54.8]} 9... Bg7 {[%clk 0:02:45.8]}
10. f3 {[%clk 0:02:54.7]} 10... O-O {[%clk 0:02:45.4]} 11. Qd2 {[%clk
0:02:54.2]} 11... a6 {[%clk 0:02:41.2]} 12. Bf2 {[%clk 0:02:49.4]} 12... Qe7
{[%clk 0:02:33.3]} 13. Rfd1 {[%clk 0:02:49.2]} 13... Rfd8 {[%clk 0:02:31.6]} 14.
Rac1 {[%clk 0:02:47.8]} 14... Nf8 {[%clk 0:02:26]} 15. Ng3 {[%clk 0:02:45.2]}
15... g5 {[%clk 0:02:23.2]} 16. Be3 {[%clk 0:02:42.7]} 16... Ng6 {[%clk
0:02:21.2]} 17. d5 {[%clk 0:02:34.9]} 17... Nd7 {[%clk 0:02:11.9]} 18. Bf1
{[%clk 0:02:33.4]} 18... Rf8 {[%clk 0:02:05.4]} 19. b3 {[%clk 0:02:29.9]} 19...
Kh8 {[%clk 0:02:03.4]} 20. Nh5 {[%clk 0:02:28]} 20... Rae8 {[%clk 0:01:44.3]}
21. b4 {[%clk 0:02:23.1]} 21... Nde5 {[%clk 0:01:31.2]} 22. Bd4 {[%clk
0:02:18.8]} 22... Kh7 {[%clk 0:01:15.6]} 23. Nxg7 {[%clk 0:02:16.9]} 23... Kxg7
{[%clk 0:01:14.7]} 24. Kh1 {[%clk 0:02:16.8]} 24... Kh7 {[%clk 0:01:13.6]} 25.
Na4 {[%clk 0:02:14.6]} 25... f5 {[%clk 0:00:57.8]} 26. Bd3 {[%clk 0:02:03.8]}
26... Nxd3 {[%clk 0:00:55.3]} 27. Qxd3 {[%clk 0:02:04.7]} 27... e5 {[%clk
0:00:48.1]} 28. Be3 {[%clk 0:01:56]} 28... Qd7 {[%clk 0:00:42.2]} 29. Qb3 {[%clk
0:01:53.2]} 29... fxe4 {[%clk 0:00:37.4]} 30. fxe4 {[%clk 0:01:52.6]} 30... Nf4
{[%clk 0:00:37.6]} 31. c5 {[%clk 0:01:48.5]} 31... bxc5 {[%clk 0:00:27.4]} 32.
bxc5 {[%clk 0:01:48.1]} 32... Qg4 {[%clk 0:00:27.8]} 33. Bxf4 {[%clk 0:01:47.2]}
33... exf4 {[%clk 0:00:21.5]} 34. Qxb7 {[%clk 0:01:40.9]} 34... f3 {[%clk
0:00:17.4]} 35. Qxc7+ {[%clk 0:01:39.1]} 35... Kh8 {[%clk 0:00:16]} 36. Rg1
{[%clk 0:01:33]} 36... Rxe4 {[%clk 0:00:09.3]} 37. Qxd6 {[%clk 0:01:31.1]} 37...
Ref4 {[%clk 0:00:05.8]} 38. Qxh6+ {[%clk 0:01:28]} 38... Kg8 {[%clk 0:00:05.7]}
39. Qe6+ {[%clk 0:01:11.8]} 39... Qxe6 {[%clk 0:00:03]} 40. dxe6 {[%clk
0:01:12.7]} 40... fxg2+ {[%clk 0:00:01.9]} 41. Rxg2 {[%clk 0:01:11.3]} 41...
Rxa4 {[%clk 0:00:02.8]} 42. Rxg5+ {[%clk 0:01:10.5]} 42... Kh7 {[%clk
0:00:03.3]} 43. e7 {[%clk 0:01:08.5]} 43... Re8 {[%clk 0:00:01.5]} 44. c6 {[%clk
0:01:08.6]} 44... Rxe7 {[%clk 0:00:01.4]} 45. c7 {[%clk 0:01:08.8]} 45... Rxa2
{[%clk 0:00:01.1]} 46. c8=Q {[%clk 0:01:06.8]} 1-0

[Event "*** SCC Grand Prix: Titled Tuesday Blitz"]
[Site "Chess.com"]
[Date "2020.08.04"]
[Round "10"]
[White "Fandorine"]
[Black "hansen"]
[Result "1-0"]
[WhiteElo "2913"]
[BlackElo "2982"]
[TimeControl "180+1"]
[EndTime "15:37:28 PDT"]
[Termination "Fandorine won on time"]

1. e4 {[%clk 0:03:00.9]} 1... c5 {[%clk 0:02:59.7]} 2. b3 {[%clk 0:02:59.8]}
2... d6 {[%clk 0:02:58.6]} 3. Bb2 {[%clk 0:02:59.3]} 3... e5 {[%clk 0:02:58.9]}
4. Bc4 {[%clk 0:02:58.6]} 4... Nc6 {[%clk 0:02:58.5]} 5. Ne2 {[%clk 0:02:58.1]}
5... a6 {[%clk 0:02:53]} 6. a4 {[%clk 0:02:58.2]} 6... Nf6 {[%clk 0:02:50.1]} 7.
d3 {[%clk 0:02:57]} 7... Rb8 {[%clk 0:02:31.8]} 8. Nbc3 {[%clk 0:02:54.1]} 8...
Be6 {[%clk 0:02:29.9]} 9. O-O {[%clk 0:02:53]} 9... Be7 {[%clk 0:02:30.1]} 10.
f4 {[%clk 0:02:51.4]} 10... Qd7 {[%clk 0:02:23.1]} 11. Ng3 {[%clk 0:02:50.1]}
11... Nd4 {[%clk 0:02:18.2]} 12. a5 {[%clk 0:02:42.4]} 12... h5 {[%clk
0:02:07.7]} 13. Nge2 {[%clk 0:02:26.7]} 13... h4 {[%clk 0:02:02]} 14. f5 {[%clk
0:02:13]} 14... Bxc4 {[%clk 0:01:55.4]} 15. bxc4 {[%clk 0:02:13.9]} 15... b5
{[%clk 0:01:46.1]} 16. axb6 {[%clk 0:02:13]} 16... Rxb6 {[%clk 0:01:46.6]} 17.
Bc1 {[%clk 0:02:13.6]} 17... h3 {[%clk 0:01:34.4]} 18. g4 {[%clk 0:02:03.4]}
18... Qb7 {[%clk 0:01:12.4]} 19. g5 {[%clk 0:01:58.9]} 19... Nd7 {[%clk
0:01:12.8]} 20. Nxd4 {[%clk 0:01:46.4]} 20... cxd4 {[%clk 0:01:08.5]} 21. Nd5
{[%clk 0:01:46.8]} 21... Rb1 {[%clk 0:01:08]} 22. Rxb1 {[%clk 0:01:42.4]} 22...
Qxb1 {[%clk 0:01:08]} 23. Bd2 {[%clk 0:01:31.3]} 23... Qb8 {[%clk 0:00:53]} 24.
Qg4 {[%clk 0:01:18.4]} 24... Bd8 {[%clk 0:00:47.6]} 25. g6 {[%clk 0:00:57.9]}
25... f6 {[%clk 0:00:33.6]} 26. Qd1 {[%clk 0:00:57.4]} 26... Nb6 {[%clk
0:00:27]} 27. Qb1 {[%clk 0:00:50.4]} 27... Qa7 {[%clk 0:00:27.2]} 28. Nxb6
{[%clk 0:00:37.6]} 28... Bxb6 {[%clk 0:00:26.9]} 29. Qb3 {[%clk 0:00:38.3]}
29... Bc5 {[%clk 0:00:12.5]} 30. Rb1 {[%clk 0:00:38.3]} 30... O-O {[%clk
0:00:10.6]} 31. Qb7 {[%clk 0:00:36.2]} 31... Qxb7 {[%clk 0:00:04.8]} 32. Rxb7
{[%clk 0:00:37.1]} 32... Ra8 {[%clk 0:00:04.6]} 33. Ba5 {[%clk 0:00:37.6]} 33...
Ba3 {[%clk 0:00:03.7]} 34. Kf2 {[%clk 0:00:33.5]} 34... Bc5 {[%clk 0:00:02.4]}
35. Kg3 {[%clk 0:00:33.4]} 1-0